bitfinex/quotes_SOLUSD_20250904
["timestamp","ask_amount","ask_price","bid_price","bid_amount"]
[1756956090143,69.43018969,208.76,208.75,0.03]
[1756956090318,73.56282227,208.76,208.75,0.03]
[1756956090516,68.09263258,208.76,208.75,0.03]
[1756956091532,66.60774256,208.76,208.75,0.03]
[1756956091733,71.39793225,208.76,208.75,0.03]
[1756956091934,72.07793225,208.76,208.75,0.03]
[1756956093147,73.9983778,208.76,208.75,0.03]
[1756956094153,47.9983778,208.76,208.75,0.03]
[1756956094744,48.14053937,208.76,208.75,0.03]
[1756956098047,26.0,208.73,208.72,0.03]
[1756956098226,66.60774256,208.73,208.72,0.03]
[1756956098426,67.28774256,208.73,208.72,0.03]
[1756956099052,72.07862072,208.73,208.72,0.03]
[1756956099345,73.31925069,208.73,208.72,0.03]
[1756956100332,73.99925069,208.73,208.72,0.03]
[1756956102459,65.88062997,208.73,208.72,0.03]
[1756956102745,2.64774256,208.73,208.72,0.69]
[1756956103050,28.64774256,208.73,208.72,0.69]
[1756956103353,26.0,208.73,208.72,0.69]
[1756956103647,28.64774256,208.73,208.72,0.69]
[1756956105247,28.64774256,208.73,208.72,0.03]
[1756956106148,28.64774256,208.73,208.72,0.69]
[1756956106348,2.64774256,208.73,208.72,0.69]
[1756956108647,39.88035335,208.75,208.72,0.69]
[1756956108854,2.64774256,208.73,208.72,0.69]
[1756956110235,2.64774256,208.73,208.72,0.03]
[1756956110639,1.92035335,208.75,208.72,0.03]
[1756956110849,2.64774256,208.73,208.72,0.03]
[1756956111740,2.64774256,208.73,208.72,0.69]
[1756956111936,2.64774256,208.73,208.72,0.03]
[1756956112750,1.92035335,208.74,208.72,0.03]
[1756956112948,2.64774256,208.73,208.72,0.03]
[1756956121664,3.35774256,208.73,208.72,0.03]
[1756956122063,2.64774256,208.73,208.72,0.03]
[1756956123062,3.35774256,208.73,208.72,0.03]
[1756956123256,2.64774256,208.73,208.72,0.03]
[1756956131376,2.63035335,208.74,208.72,0.03]
[1756956131580,2.64774256,208.73,208.72,0.03]
[1756956132671,2.63035335,208.74,208.72,0.03]
[1756956132974,2.64774256,208.73,208.72,0.03]
[1756956135568,3.36774256,208.73,208.72,0.03]
[1756956136079,0.72,208.73,208.72,0.03]
[1756956136249,2.64774256,208.73,208.72,0.03]
[1756956138378,2.64035335,208.74,208.72,0.03]
[1756956138583,44.51677361,208.73,208.72,0.03]
[1756956138753,26.0,208.71,208.7,0.03]
[1756956138960,36.40518267,208.71,208.7,0.03]
[1756956139161,39.77292523,208.71,208.7,0.03]
[1756956139369,41.69383189,208.71,208.7,0.03]
[1756956139585,39.04627137,208.71,208.7,0.03]
[1756956139779,38.10618201,208.71,208.7,0.03]
[1756956140084,34.51786231,208.71,208.7,0.03]
[1756956141064,39.30872734,208.71,208.7,0.03]
[1756956143690,39.45088891,208.71,208.7,0.03]
[1756956144588,39.45088891,208.71,208.67,0.03]
[1756956144589,0.14216157,208.7,208.67,0.03]
[1756956144764,18.03073886,208.68,208.67,0.03]
[1756956144962,21.97947972,208.68,208.67,0.03]
[1756956145169,23.90066317,208.68,208.67,0.03]
[1756956145390,155.54282474,208.68,208.67,0.03]
[1756956145577,13.2387128,208.67,208.64,0.03]
[1756956145776,69.79648342,208.66,208.64,0.03]
[1756956145987,70.51648342,208.66,208.64,0.03]
[1756956146283,46.43785143,208.66,208.64,0.03]
[1756956146484,51.23033681,208.66,208.64,0.03]
[1756956146686,51.37249838,208.66,208.64,0.03]
[1756956147488,5.87648342,208.65,208.64,0.03]
[1756956147888,6.59648342,208.65,208.64,0.03]
[1756956148285,11.38919849,208.65,208.64,0.03]
[1756956148591,13.3106588,208.65,208.64,0.03]
[1756956149885,13.45282037,208.65,208.64,0.03]
[1756956151591,49.6393095,208.65,208.64,0.03]
[1756956151783,48.9193095,208.65,208.64,0.03]
[1756956152096,49.6393095,208.65,208.64,0.03]
[1756956152692,52.85277281,208.65,208.64,0.03]
[1756956153598,49.6393095,208.65,208.64,0.03]
[1756956154178,52.8518789,208.65,208.64,0.03]
[1756956154475,49.6393095,208.65,208.64,0.03]
[1756956155084,26.0,208.62,208.61,0.03]
[1756956155292,68.06297255,208.62,208.61,0.03]
[1756956155481,68.78297255,208.62,208.61,0.03]
[1756956155685,70.70461748,208.62,208.61,0.03]
[1756956155881,65.84164493,208.62,208.61,0.03]
[1756956156091,69.98461748,208.62,208.61,0.73]
[1756956156994,69.98461748,208.62,208.61,0.03]
[1756956157196,1.92164493,208.62,208.61,0.73]
[1756956157396,26.0,208.62,208.61,0.73]
[1756956157693,30.14297255,208.62,208.61,0.73]
[1756956160299,47.57637682,208.62,208.61,0.03]
[1756956160506,31.51311126,208.64,208.61,0.03]
[1756956160676,31.51311126,208.64,208.61,0.73]
[1756956160677,4.14297255,208.62,208.61,0.73]
[1756956160877,68.06297255,208.63,208.61,0.73]
[1756956161488,63.92,208.63,208.62,0.7]
[1756956162489,63.92,208.63,208.61,0.03]
[1756956162803,4.14297255,208.62,208.61,0.69]
[1756956165402,63.92,208.63,208.61,0.69]
[1756956165592,4.14297255,208.62,208.61,0.69]
[1756956165994,63.92,208.64,208.61,0.69]
[1756956166195,4.14297255,208.62,208.61,0.69]
[1756956166395,4.14297255,208.62,208.61,0.03]
[1756956166604,4.14297255,208.62,208.61,0.69]
[1756956167401,6.12434056,208.65,208.61,5.48357024]
[1756956167600,4.20297255,208.65,208.62,0.66]
[1756956167806,0.06,208.65,208.62,5.45317596]
[1756956168006,0.06,208.65,208.63,0.66]
[1756956170288,0.06,208.65,208.64,4.79294478]
[1756956170808,0.06,208.65,208.64,5.45294478]
[1756956177000,1e-08,208.65,208.64,23.61799605]
[1756956177199,1e-08,208.65,208.64,49.61799605]
[1756956177400,1e-08,208.65,208.64,53.7609686]
[1756956178111,1e-08,208.68,208.67,39.59559401]
[1756956178422,1e-08,208.7,208.68,14.02207872]
[1756956178610,1e-08,208.7,208.68,52.58207872]
[1756956178798,1e-08,208.7,208.69,14.25559401]
[1756956179002,1e-08,208.7,208.69,23.190363]
[1756956180112,1e-08,208.7,208.69,19.04739045]
[1756956180300,1e-08,208.7,208.69,23.190363]
[1756956183931,1e-08,208.7,208.69,19.04739045]
[1756956184225,1e-08,208.7,208.69,60.71468614]
[1756956184428,1e-08,208.7,208.69,61.37468614]
[1756956185312,1e-08,208.7,208.69,57.23171359]
[1756956185513,1e-08,208.7,208.69,61.37468614]
[1756956188641,1e-08,208.7,208.69,63.29467078]
[1756956190220,1e-08,208.7,208.69,59.2938598]
[1756956190431,1e-08,208.7,208.69,63.43683235]
[1756956190610,1e-08,208.7,208.69,24.73467078]
[1756956190818,1e-08,208.7,208.69,62.63467078]
[1756956192033,1e-08,208.7,208.69,58.49169823]
[1756956192242,1e-08,208.7,208.69,62.63467078]
[1756956192746,1e-08,208.7,208.69,63.30467078]
[1756956193036,1e-08,208.7,208.69,63.44683235]
[1756956193613,1e-08,208.7,208.69,63.47683235]
[1756956193814,1e-08,208.7,208.69,59.3338598]
[1756956194140,1e-08,208.7,208.69,63.31467078]
[1756956195826,1e-08,208.7,208.69,59.17169823]
[1756956196023,1e-08,208.7,208.69,58.50169823]
[1756956196228,1e-08,208.7,208.69,63.31467078]
[1756956197242,1e-08,208.7,208.69,58.50169823]
[1756956197415,1e-08,208.7,208.69,56.58171359]
[1756956201721,0.68000001,208.7,208.69,0.03]
[1756956201919,1e-08,208.7,208.69,22.560363]
[1756956202115,1e-08,208.7,208.69,22.84468614]
[1756956203118,1e-08,208.7,208.69,23.65684771]
[1756956203321,1e-08,208.73,208.72,39.73775558]
[1756956203550,1e-08,208.73,208.72,82.04505127]
[1756956203920,1e-08,208.73,208.72,89.42568293]
[1756956205529,1e-08,208.75,208.73,14.02207872]
[1756956205745,1e-08,208.75,208.74,56.04505127]
[1756956206041,1e-08,208.75,208.74,56.71505127]
[1756956206245,1e-08,208.75,208.74,52.57207872]
[1756956206546,1e-08,208.75,208.74,56.71505127]
[1756956207431,1e-08,208.75,208.74,52.57207872]
[1756956207636,1e-08,208.75,208.74,61.50569992]
[1756956211331,1e-08,208.75,208.74,140.10569992]
[1756956213535,1e-08,208.75,208.74,140.52662612]
[1756956213739,0.74,208.8,208.78,13.59559401]
[1756956213960,0.74,208.8,208.79,54.40456825]
[1756956214245,0.68,208.84,208.81,0.28432314]
[1756956214428,1e-08,208.89,208.81,0.28432314]
[1756956214429,1e-08,208.89,208.83,13.59559401]
[1756956214633,2.6446511,208.88,208.84,37.88]
[1756956215151,0.68,208.85,208.84,37.88]
[1756956215530,0.68,208.85,208.84,42.66835472]
[1756956216435,0.68,208.85,208.84,37.88]
[1756956216749,0.68,208.85,208.84,37.86]
[1756956217129,3.3246511,208.85,208.83,4.78855867]
[1756956217450,0.68,208.84,208.83,42.64855867]
[1756956220232,0.88,208.86,208.83,42.64855867]
[1756956220443,0.88,208.86,208.84,13.59559401]
[1756956220634,0.88,208.86,208.85,37.86]
[1756956221676,0.88,208.86,208.85,42.64812544]
[1756956221982,0.92,208.86,208.85,42.64812544]
[1756956222153,0.2,208.86,208.85,42.64812544]
[1756956223273,0.2,208.86,208.85,59.17269369]
[1756956223469,0.2,208.86,208.85,56.52804259]
[1756956225469,0.92,208.86,208.85,18.66804259]
[1756956225970,0.92,208.86,208.85,56.52804259]
[1756956226978,0.92,208.86,208.85,18.66804259]
[1756956227165,0.92,208.86,208.85,56.52804259]
[1756956227767,0.92,208.86,208.85,56.24371945]
[1756956228558,0.92,208.86,208.85,18.38371945]
[1756956228871,0.92,208.86,208.85,56.24371945]
[1756956229073,0.92,208.86,208.85,51.45559401]
[1756956229376,0.92,208.86,208.85,42.64812544]
[1756956233259,0.2,208.86,208.85,59.57837055]
[1756956233663,0.2,208.86,208.85,59.17269369]
[1756956234582,0.2,208.86,208.85,59.86269369]
[1756956236177,0.2,208.86,208.85,59.17269369]
[1756956238279,0.2,208.86,208.85,59.86269369]
[1756956239677,0.2,208.86,208.85,59.17269369]
[1756956240667,0.2,208.86,208.85,59.86269369]
[1756956241288,0.2,208.86,208.85,59.17269369]
[1756956243497,0.92,208.86,208.85,18.66804259]
[1756956243669,0.92,208.86,208.85,56.50804259]
[1756956243863,0.2,208.86,208.85,56.50804259]
[1756956245271,0.2,208.86,208.85,59.15269369]
[1756956245480,0.2,208.86,208.85,21.31269369]
[1756956245682,0.2,208.86,208.85,56.50804259]
[1756956245874,0.2,208.86,208.85,59.15269369]
[1756956246264,0.2,208.86,208.85,56.50804259]
[1756956246464,0.2,208.86,208.85,18.66804259]
[1756956246665,0.92,208.86,208.85,56.50804259]
[1756956247312,0.92,208.86,208.85,4.78812544]
[1756956247467,0.92,208.86,208.85,42.62812544]
[1756956248263,0.2,208.86,208.85,57.19804259]
[1756956248470,0.2,208.86,208.85,59.84269369]
[1756956249170,0.2,208.86,208.85,56.50804259]
[1756956249377,0.2,208.86,208.85,59.84269369]
[1756956255578,0.2,208.86,208.85,59.15269369]
[1756956255808,0.2,208.86,208.85,56.50804259]
[1756956256108,0.2,208.86,208.85,59.82269369]
[1756956259292,0.2,208.86,208.85,59.15269369]
[1756956264784,1e-08,208.86,208.85,59.15269369]
[1756956265126,1e-08,208.86,208.85,59.96485526]
[1756956268110,1e-08,208.86,208.85,138.56485526]
[1756956271101,1e-08,208.86,208.85,97.41020416]
[1756956271317,1e-08,208.86,208.85,137.44837055]
[1756956271514,1e-08,208.86,208.85,99.62837055]
[1756956271690,1e-08,208.86,208.85,163.44837055]
[1756956271894,1e-08,208.86,208.85,163.73269369]
[1756956272115,0.72000001,208.86,208.85,163.73269369]
[1756956272411,0.72000001,208.86,208.85,135.08804259]
[1756956272599,0.72000001,208.86,208.85,137.73269369]
[1756956273001,1e-08,208.86,208.85,137.73269369]
[1756956273321,1e-08,208.86,208.85,99.91269369]
[1756956273617,1e-08,208.86,208.85,139.21754646]
[1756956274008,1e-08,208.86,208.85,60.61754646]
[1756956274397,1e-08,208.86,208.85,61.28754646]
[1756956274597,1e-08,208.86,208.85,60.61754646]
[1756956275109,1e-08,208.86,208.85,18.66804259]
[1756956275310,1e-08,208.86,208.85,60.61754646]
[1756956275620,0.72000001,208.86,208.85,18.66804259]
[1756956275919,0.72000001,208.86,208.85,58.40655383]
[1756956276116,0.72000001,208.86,208.85,20.30223069]
[1756956276418,0.72000001,208.86,208.85,56.20371945]
[1756956276998,0.72000001,208.86,208.84,4.78831073]
[1756956277318,1e-08,208.86,208.85,37.82]
[1756956277802,0.72000001,208.86,208.85,37.82]
[1756956278496,0.72000001,208.86,208.85,42.60812544]
[1756956279305,0.72000001,208.86,208.83,4.78856304]
[1756956279500,0.72,208.85,208.84,37.82]
[1756956280912,0.72,208.85,208.82,18.3843938]
[1756956281131,0.72,208.84,208.81,0.03]
[1756956281431,4.12950387,208.82,208.81,37.83]
[1756956281639,4.84950387,208.82,208.81,0.03]
[1756956282657,0.72,208.82,208.81,0.03]
[1756956284723,4.84950387,208.82,208.81,0.03]
[1756956285445,0.72,208.82,208.81,0.03]
[1756956288951,0.68,208.85,208.81,4.15950387]
[1756956289158,0.68,208.84,208.82,37.8]
[1756956290255,30.12950388,208.86,208.83,4.78858401]
[1756956290453,0.68,208.84,208.83,4.78858401]
[1756956293768,0.68,208.84,208.82,42.58877573]
[1756956294060,0.68,208.83,208.82,37.8]
[1756956294472,0.68,208.83,208.81,42.61904003]
[1756956294762,0.68,208.83,208.81,4.81904003]
[1756956294763,0.68,208.82,208.81,4.81904003]
[1756956294976,4.80950387,208.82,208.81,37.83]
[1756956295272,0.68,208.82,208.81,42.61897092]
[1756956296573,0.68,208.83,208.81,42.61897092]
[1756956297696,0.68000001,208.86,208.81,42.61897092]
[1756956297861,1e-08,208.86,208.82,0.67]
[1756956298195,1e-08,208.86,208.84,4.12950387]
[1756956298374,1e-08,208.86,208.85,37.8]
[1756956298770,1e-08,208.86,208.85,38.47]
[1756956299773,1e-08,208.86,208.85,43.25812544]
[1756956301286,1e-08,208.86,208.85,42.58812544]
[1756956301495,1e-08,208.86,208.85,43.25812544]
[1756956304488,1e-08,208.86,208.85,42.58812544]
[1756956305806,0.68000001,208.86,208.85,4.78812544]
[1756956306011,0.68000001,208.86,208.85,37.8]
[1756956306176,0.68000001,208.86,208.84,42.58834737]
[1756956306493,0.68,208.85,208.84,42.58834737]
[1756956307292,0.68,208.85,208.84,37.8]
[1756956307797,1e-08,208.86,208.85,13.59559401]
[1756956308369,1e-08,208.86,208.85,14.26559401]
[1756956308799,1e-08,208.86,208.85,13.59559401]
[1756956309176,1e-08,208.86,208.85,18.38371945]
[1756956310273,1e-08,208.86,208.85,19.05371945]
[1756956310694,1e-08,208.86,208.85,18.38371945]
[1756956311097,1e-08,208.86,208.85,19.05371945]
[1756956311477,1e-08,208.86,208.85,18.38371945]
[1756956312405,1e-08,208.86,208.85,19.05371945]
[1756956313304,1e-08,208.86,208.85,42.56812544]
[1756956316505,1e-08,208.86,208.85,42.59812544]
[1756956317710,1e-08,208.86,208.85,60.99322332]
[1756956318213,1e-08,208.86,208.85,56.86371945]
[1756956318384,1e-08,208.86,208.85,60.99322332]
[1756956318797,1e-08,208.86,208.85,56.86371945]
[1756956319715,1e-08,208.86,208.85,60.99322332]
[1756956326221,1e-08,208.86,208.85,60.32322332]
[1756956327213,1e-08,208.86,208.85,60.99322332]
[1756956328198,1e-08,208.86,208.85,60.32322332]
[1756956328801,1e-08,208.86,208.85,18.41371945]
[1756956329122,0.66000001,208.86,208.85,18.41371945]
[1756956329428,1e-08,208.86,208.85,56.17371945]
[1756956330522,0.66000001,208.86,208.85,4.81812544]
[1756956330712,0.66000001,208.86,208.85,42.57812544]
[1756956330914,1e-08,208.86,208.85,56.17371945]
[1756956332227,1e-08,208.86,208.85,18.41371945]
[1756956332430,1e-08,208.86,208.85,56.17371945]
[1756956335725,1e-08,208.86,208.85,59.48718784]
[1756956336127,1e-08,208.86,208.85,56.84371945]
[1756956336330,1e-08,208.86,208.85,56.17371945]
[1756956337021,1e-08,208.86,208.85,59.48718784]
[1756956337530,1e-08,208.86,208.85,56.84371945]
[1756956337748,1e-08,208.86,208.85,59.48718784]
[1756956338119,1e-08,208.86,208.85,58.81718784]
[1756956339410,1e-08,208.86,208.85,56.17371945]
[1756956339411,0.66000001,208.86,208.85,56.17371945]
[1756956340111,0.66000001,208.86,208.85,4.81812544]
[1756956340311,0.66000001,208.86,208.85,42.57812544]
[1756956340526,1e-08,208.86,208.85,59.77151098]
[1756956342754,1e-08,208.86,208.85,56.45804259]
[1756956342933,1e-08,208.86,208.85,18.69804259]
[1756956343133,1e-08,208.86,208.85,56.45804259]
[1756956343520,1e-08,208.86,208.85,4.81812544]
[1756956343830,1e-08,208.86,208.85,37.79]
[1756956346261,1e-08,208.86,208.85,0.03]
[1756956346262,0.68000001,208.86,208.85,0.03]
[1756956346426,31.24262397,208.86,208.85,0.03]
[1756956346620,28.59915558,208.86,208.85,0.03]
[1756956346933,31.24262397,208.86,208.85,0.03]
[1756956349521,36.03052016,208.86,208.85,0.03]
[1756956349828,39.25245545,208.86,208.85,0.03]
[1756956351126,39.39461702,208.86,208.85,0.03]
[1756956351324,0.14216157,208.85,208.82,0.03]
[1756956351533,2.64346839,208.83,208.82,0.03]
[1756956351737,26.0,208.81,208.8,0.03]
[1756956352043,0.14216157,208.8,208.78,0.03]
[1756956352246,4.78973081,208.78,208.74,0.03]
[1756956352450,3.32346839,208.77,208.74,0.03]
[1756956352826,26.0,208.78,208.75,0.69]
[1756956353035,2.64346839,208.78,208.74,0.03]
[1756956353325,3.32346839,208.77,208.74,0.03]
[1756956354251,8.11342863,208.77,208.74,0.03]
[1756956356250,26.0,208.76,208.74,0.03]
[1756956356429,2.78562996,208.75,208.74,0.03]
[1756956356633,3.46562996,208.75,208.74,0.03]
[1756956356842,5.38625993,208.75,208.74,0.03]
[1756956357549,26.14216157,208.72,208.71,0.03]
[1756956357756,66.40346839,208.72,208.69,0.03]
[1756956357934,2.64346839,208.7,208.69,0.03]
[1756956358326,10.0359419,208.7,208.69,0.03]
[1756956359839,30.56437506,208.7,208.69,0.03]
[1756956360356,28.60090667,208.7,208.69,0.03]
[1756956360674,2.64346839,208.7,208.69,0.72]
[1756956360864,2.64346839,208.7,208.69,0.03]
[1756956361033,1.92062997,208.72,208.69,0.03]
[1756956361234,2.64346839,208.7,208.69,0.03]
[1756956361770,2.60062997,208.72,208.69,0.03]
[1756956361948,2.64346839,208.7,208.69,0.03]
[1756956364137,3.32346839,208.7,208.69,0.03]
[1756956365159,8.11503523,208.7,208.69,0.03]
[1756956365348,3.32346839,208.7,208.69,0.03]
[1756956366458,5.24428281,208.7,208.69,0.03]
[1756956367648,10.03584965,208.7,208.69,0.03]
[1756956367855,40.38081442,208.7,208.69,0.03]
[1756956368059,43.02428281,208.7,208.69,0.03]
[1756956368254,5.24428281,208.7,208.69,0.03]
[1756956370369,2.60081442,208.7,208.69,0.03]
[1756956370752,5.24428281,208.7,208.69,0.03]
[1756956371671,2.60081442,208.7,208.69,0.03]
[1756956371850,5.24428281,208.7,208.69,0.03]
[1756956373871,10.03584965,208.7,208.69,0.03]
[1756956376743,7.39238126,208.7,208.69,0.03]
[1756956376944,10.03584965,208.7,208.69,0.03]
[1756956379471,7.39238126,208.7,208.69,0.03]
[1756956379654,47.81584965,208.7,208.69,0.03]
[1756956380268,65.70081442,208.7,208.69,0.03]
[1756956380576,68.34428281,208.7,208.69,0.03]
[1756956381070,68.99428281,208.7,208.69,0.03]
[1756956381649,73.78584965,208.7,208.69,0.03]
[1756956383781,68.34428281,208.7,208.69,0.03]
[1756956384577,73.78584965,208.7,208.69,0.03]
[1756956385975,68.99428281,208.7,208.69,0.03]
[1756956389067,68.34428281,208.7,208.69,0.03]
[1756956391862,68.99428281,208.7,208.69,0.03]
[1756956392572,65.70081442,208.7,208.69,0.03]
[1756956392772,68.99428281,208.7,208.69,0.03]
[1756956393163,68.34428281,208.7,208.69,0.03]
[1756956395479,69.8400877,208.7,208.69,0.03]
[1756956396186,67.91927328,208.7,208.69,0.03]
[1756956398285,71.13829714,208.7,208.69,0.03]
[1756956398774,71.78829714,208.7,208.69,0.03]
[1756956401690,71.13829714,208.7,208.69,0.03]
[1756956402996,33.35829714,208.7,208.69,0.03]
[1756956403293,4.13927328,208.7,208.69,0.72]
[1756956403478,30.19927328,208.71,208.69,0.72]
[1756956404081,4.19927328,208.71,208.69,0.72]
[1756956404788,4.13927328,208.7,208.69,0.03]
[1756956405488,0.06,208.71,208.69,0.03]
[1756956405686,0.06,208.71,208.7,0.69]
[1756956407398,4.19927328,208.71,208.69,0.03]
[1756956407612,30.85927328,208.7,208.69,0.03]
[1756956407824,34.08273388,208.7,208.69,0.03]
[1756956408097,4.13927328,208.7,208.69,0.03]
[1756956408592,0.06,208.71,208.69,0.03]
[1756956408798,26.0,208.7,208.69,0.72]
[1756956409595,30.13927328,208.7,208.69,0.72]
[1756956410415,26.0,208.7,208.69,0.72]
[1756956410618,30.13927328,208.7,208.69,0.72]
[1756956411614,26.0,208.7,208.69,0.72]
[1756956413589,4.19927328,208.71,208.69,0.72]
[1756956413786,26.0,208.7,208.69,0.72]
[1756956414010,30.13927328,208.7,208.69,0.03]
[1756956416723,4.13927328,208.7,208.69,0.03]
[1756956418120,4.19927328,208.71,208.69,0.03]
[1756956418310,4.13927328,208.7,208.69,0.03]
[1756956419719,0.06,208.71,208.69,0.03]
[1756956420018,4.13927328,208.7,208.69,0.03]
[1756956420225,0.78,208.71,208.69,0.03]
[1756956420396,0.06,208.71,208.69,0.72]
[1756956420821,0.06,208.71,208.69,4.85927328]
[1756956421297,0.06,208.71,208.7,23.50075727]
[1756956426728,0.06,208.71,208.7,18.38716085]
[1756956426933,0.06,208.71,208.7,23.21643413]
[1756956427142,0.06,208.71,208.7,9.62084012]
[1756956431529,0.78,208.71,208.69,0.03]
[1756956431704,0.06,208.71,208.69,0.03]
[1756956431905,0.72,208.7,208.69,0.03]
[1756956432121,0.06,208.71,208.69,0.03]
[1756956433108,0.73,208.71,208.69,0.03]
[1756956433311,0.67,208.7,208.69,0.03]
[1756956435143,4.80927328,208.7,208.69,0.03]
[1756956435523,9.60084012,208.7,208.69,0.03]
[1756956436031,5.46156684,208.7,208.69,0.03]
[1756956436242,35.60084012,208.7,208.69,0.03]
[1756956437627,9.60084012,208.7,208.69,0.03]
[1756956439035,35.74300169,208.7,208.69,0.03]
[1756956439229,9.74300169,208.7,208.69,0.03]
[1756956439425,5.46156684,208.7,208.69,0.03]
[1756956439626,9.60084012,208.7,208.69,0.03]
[1756956440745,9.74300169,208.7,208.69,0.03]
[1756956440928,16.01174413,208.7,208.69,0.03]
[1756956441742,42.01174413,208.7,208.69,0.03]
[1756956442040,16.01174413,208.7,208.69,0.03]
[1756956442234,15.86958256,208.7,208.69,0.03]
[1756956443035,47.32084012,208.7,208.69,0.03]
[1756956446839,41.85927328,208.7,208.69,0.03]
[1756956447030,67.85927328,208.7,208.69,0.03]
[1756956447643,73.32084012,208.7,208.69,0.03]
[1756956448247,73.46300169,208.7,208.69,0.03]
[1756956450523,75.38418514,208.7,208.69,0.03]
[1756956455023,0.42648471,208.69,208.64,0.03]
[1756956455228,0.42648471,208.69,208.61,0.03]
[1756956455229,26.14216157,208.64,208.61,0.03]
[1756956455537,2.79448798,208.62,208.61,0.03]
[1756956455848,40.51448798,208.62,208.61,0.03]
[1756956456034,0.14216157,208.61,208.6,0.1]
[1756956456237,3.46448798,208.61,208.6,0.1]
[1756956456440,39.73775558,208.6,208.59,0.03]
[1756956456746,14.02207872,208.59,208.56,0.03]
[1756956456950,55.77595557,208.58,208.56,0.03]
[1756956457331,0.14216157,208.57,208.56,0.03]
[1756956457654,13.40379362,208.57,208.56,0.03]
[1756956457949,14.07379362,208.57,208.56,0.03]
[1756956458539,18.868347,208.57,208.56,0.03]
[1756956458950,20.79073076,208.57,208.56,0.03]
[1756956459950,26.14216157,208.54,208.53,0.1]
[1756956460128,66.51448798,208.54,208.53,0.1]
[1756956460341,67.18448798,208.54,208.53,0.1]
[1756956460852,85.85964824,208.54,208.51,0.1]
[1756956461029,2.79448798,208.52,208.51,0.1]
[1756956461353,40.51448798,208.52,208.51,0.1]
[1756956461532,41.18448798,208.52,208.51,0.1]
[1756956461733,43.10733379,208.52,208.51,0.1]
[1756956461937,47.90303684,208.52,208.51,0.1]
[1756956463242,26.14216157,208.49,208.46,0.66]
[1756956463446,66.51448798,208.49,208.46,0.66]
[1756956463958,72.03088109,208.49,208.44,0.66]
[1756956465639,76.82954344,208.49,208.44,0.66]
[1756956467765,39.10954344,208.49,208.44,0.66]
[1756956467947,76.82954344,208.49,208.45,0.66]
[1756956468548,76.82954344,208.49,208.44,0.66]
[1756956468749,76.82954344,208.49,208.45,0.66]
[1756956469249,76.82954344,208.49,208.45,0.03]
[1756956469650,76.82954344,208.49,208.45,0.69]
[1756956469651,74.17721703,208.49,208.45,0.69]
[1756956469851,76.82954344,208.49,208.45,0.69]
[1756956470867,35.59505546,208.49,208.46,0.66]
[1756956471157,38.38954344,208.49,208.47,0.66]
[1756956471363,4.79866235,208.49,208.48,0.76]
[1756956471555,40.39232641,208.49,208.48,0.76]
[1756956471757,45.18871952,208.49,208.48,0.1]
[1756956472063,49.66729712,208.49,208.48,0.1]
[1756956472252,51.59962353,208.49,208.48,0.1]
[1756956473334,48.94729712,208.49,208.48,0.1]
[1756956473537,45.33088109,208.49,208.48,0.1]
[1756956475345,46.05088109,208.49,208.48,0.1]
[1756956476970,47.9740967,208.49,208.48,0.1]
[1756956477545,47.97193513,208.49,208.48,0.1]
[1756956477848,46.04871952,208.49,208.48,0.76]
[1756956478161,46.04871952,208.49,208.48,0.1]
[1756956478867,46.04871952,208.49,208.48,0.76]
[1756956479442,41.25232641,208.49,208.48,0.76]
[1756956479967,46.04871952,208.49,208.48,0.76]
[1756956480267,46.04871952,208.49,208.48,0.1]
[1756956481547,43.39639311,208.49,208.48,0.1]